Cogmind - Beta 10.2 *** ADVENTURER MODE // 2021.05.09 @ 23:22:24 Player: darlorth Result: Destroyed by D-53 Grenadier with Mini Grenade Launcher Performance ------------- Evolutions (0) 0 Regions Visited (2) 400 Robots Destroyed (30) 150 Value Destroyed (445) 445 Prototype IDs (0) 0 Alien Tech Used (0) 0 Bonus (-176) -176 TOTAL SCORE: 819 Bonus ------- High Alert Combat Kills 10 Friendly Fire -186 Cogmind --------- Core Integrity 0/250 Matter 85/300 Energy 100/100 System Corruption 0% Temperature Cool (0) Movement Walking (120) Location -10/Mines Parts ------- > --- POWER (1) -------- (None) > --- PROPULSION (2) --- Carbon-fiber Leg > --- UTILITY (2) ------ Signal Interpreter > --- WEAPON (2) ------- Light Assault Rifle > --- INVENTORY (4) ---- Light Ion Engine Aluminum Leg Light Assault Rifle Peak State ------------ > --- POWER ------------ Light Ion Engine > --- PROPULSION ------- Aluminum Leg Carbon-fiber Leg > --- UTILITY ---------- Sensor Array Signal Interpreter > --- WEAPON ----------- Light Assault Rifle Rocket Launcher > --- INVENTORY -------- Light Ion Engine Aluminum Leg Light Assault Rifle Light Assault Rifle [Rating: 10] Favorites ----------- Power Ion Engine Engine Ion Engine Propulsion Aluminum Leg Leg Aluminum Leg Utility Signal Interpreter Device Sensor Array Processor Signal Interpreter Weapon Light Assault Rifle Energy Gun Medium Laser Ballistic Gun Light Assault Rifle Launcher Rocket Launcher Build | -11 -10 -10 ------- Run | Scr Mat Min Slots Evolved . | . . . Power . | . . . Propulsion . | . . . Utility . | . . . Weapon . | . . . Parts Attached 20 | 5 3 12 Power 3 | 1 . 2 Engine 3 | 1 . 2 Core . | . . . Reactor . | . . . Propulsion 5 | 2 . 3 Treads . | . . . Leg 5 | 2 . 3 Wheel . | . . . Hover . | . . . Flight . | . . . Utility 2 | . 2 . Device 1 | . 1 . Storage . | . . . Processor 1 | . 1 . Hackware . | . . . Protection . | . . . Artifact . | . . . Weapon 10 | 2 1 7 Energy Gun 3 | 2 . 1 Energy Cannon . | . . . Ballistic Gun 5 | . 1 4 Ballistic Cannon . | . . . Launcher 2 | . . 2 Special Weapon . | . . . Impact Weapon . | . . . Slashing Weapon . | . . . Piercing Weapon . | . . . Special Melee Weapon . | . . . Unidentified Prototypes . | . . . Parts Lost 6 | . . 6 Power 1 | . . 1 Propulsion 1 | . . 1 Utility 1 | . . 1 Weapon 3 | . . 3 Highest Loss Streak 5 | . . 5 Average Slot Usage (%) 96 | . 91 99 Engine 13 | . 14 13 Leg 28 | . 28 28 Device 12 | . 10 14 Processor 12 | . 10 14 Energy Gun 7 | . 19 . Ballistic Gun 13 | . 8 16 Launcher 6 | . . 11 Naked Turns . | . . . Heaviest Build 11 | 9 10 11 Greatest Support 25 | 20 20 25 Greatest Overweight (x) . | . . . Average Overweight (x) . | . . . Largest Inventory Capacity 4 | 4 4 4 Average Capacity 4 | 4 4 4 Most Carried 4 | 3 4 4 Average Carried 3 | 1 3 3 Final Capacity 4 | 4 4 4 Final Carried 4 | 2 4 3 Class Distribution -------------------- 56% | Scavenger-Mutant 43% | Mutant Dominant Class ---------------- Mutant | -10/Materials Scavenger-Mutant | -10/Mines Resources | -11 -10 -10 ----------- Run | Scr Mat Min Matter Collected 458 | 208 87 163 Remotely . | . . . Salvage Created 481 | . 255 226 Parts 49 | . 21 28 Haulers Intercepted . | . . . Recyclers Shooed 1 | . 1 . Parts Field Recycled . | . . . Retrieved Matter . | . . . Parts Self-Destructed . | . . . Prevented . | . . . Kills | -11 -10 -10 ------- Run | Scr Mat Min Combat Hostiles Destroyed 44 | . 11 33 Guns 15 | . 11 4 AOE 29 | . . 29 Classes Destroyed 4 | . 3 1 Watcher 1 | . 1 . Swarmer 24 | . 9 15 Grunt 4 | . 2 2 Assembled 16 | . . 16 Thug 1 | . . 1 Best Kill Streak 16 | . 6 16 Combat Bots Only 16 | . 6 16 Max Kills in Single Turn 4 | . 2 4 Gunslinging 1 | . 1 1 Exploded 4 | . . 4 Melee . | . . . Uniques/NPCs Destroyed . | . . . Combat | -11 -10 -10 -------- Run | Scr Mat Min Damage Taken 1074 | . 286 788 Core 255 | . 81 174 Absorbed by Shields . | . . . Core Remaining (%) 100 | 100 . . Volleys Fired 66 | . 29 37 Largest 2 | . 2 2 Hottest 90 | . 90 70 Shots Fired 99 | . 56 43 Gun 74 | . 56 18 Cannon . | . . . Launcher 25 | . . 25 Special . | . . . Kinetic 32 | . 15 17 Thermal 30 | . 29 1 Explosive 25 | . . 25 Electromagnetic 12 | . 12 . Robot Hit Streak 19 | . 19 6 Robot Miss Streak 2 | . 2 2 Penetration Max . | . . . Secondary Targets 6 | . 5 1 Max Gunslinging Chain 1 | . 1 1 Shots Hit Robots 70 | . 47 23 Core Hits 72 | . 16 56 Critical Hits 1 | . 1 . Critical Kills . | . . . Critical Parts Destroyed 1 | . 1 . Melee Attacks . | . . . Impact . | . . . Slashing . | . . . Piercing . | . . . Sneak Attacks . | . . . Combat Hostiles . | . . . Follow-up Attacks . | . . . Damage Inflicted 2761 | . 489 2272 Guns 579 | . 489 90 Cannons . | . . . Explosions 2182 | . . 2182 Melee . | . . . Ramming . | . . . Kinetic 179 | . 101 78 Thermal 387 | . 271 116 Explosive 2078 | . . 2078 Electromagnetic 117 | . 117 . Impact . | . . . Slashing . | . . . Piercing . | . . . Highest Corruption . | . . . Average Corruption . | . . . Corruption Purged . | . . . Overload Shots . | . . . Overflow Damage 76 | . . 76 Projectiles . | . . . Explosions 76 | . . 76 Melee . | . . . Knockbacks . | . . . Impact . | . . . Kinetic . | . . . Secondary . | . . . Self-Inflicted Damage 105 | . . 105 Shots 4 | . . 4 Rammed . | . . . Targets Rammed . | . . . Kicked . | . . . Crushed . | . . . Highest Temperature 302 | . 302 30 Average Temperature 115 | . 122 11 Received Heat Transfer 117 | . 108 9 Effects 3 | . 3 . Energy Bleed 1 | . 1 . Interference 2 | . 2 . Siege Activations . | . . . Robots Corrupted . | . . . Combat Hostiles . | . . . Parts Fried . | . . . Impact Corruptions . | . . . Robots Melted . | . . . Combat Hostiles . | . . . Parts Melted 2 | . 2 . Heat Transferred 951 | . 814 137 Parts Sabotaged . | . . . Parts Stolen . | . . . Parts Stripped . | . . . Power Chain Reactions . | . . . Missiles Intercepted . | . . . Alert | -11 -10 -10 ------- Run | Scr Mat Min Peak Influence 517 | . 330 517 Initial 108 | . . 108 Average 279 | . 215 355 Maximum Alert Level 2 | . 1 2 Low Security (%) 26 | 100 41 8 Level 1 53 | . 58 56 Level 2 19 | . . 35 Level 3 . | . . . Level 4 . | . . . Level 5 . | . . . High Security . | . . . Max Security . | . . . Squads Dispatched 2 | . 2 . Investigation 2 | . 2 . Extermination . | . . . Reinforcement . | . . . Assault . | . . . Garrison . | . . . Intercept . | . . . Construction Impeded . | . . . Haulers Reinforced . | . . . Stealth | -11 -10 -10 --------- Run | Scr Mat Min Distress Signals 1 | . 1 . Communications Jammed . | . . . Distress Signals . | . . . Times Spotted 51 | . 16 35 Peak Tracking Total 12 | . 6 12 Tactical Retreats . | . . . Traps | -11 -10 -10 ------- Run | Scr Mat Min Traps Triggered 2 | . 2 . Indirectly . | . . . Trap Hack Attempts . | . . . Triggered . | . . . Disarmed . | . . . Reprogrammed . | . . . Reused . | . . . Traps Extracted . | . . . Installed . | . . . Triggered . | . . . Machines | -11 -10 -10 ---------- Run | Scr Mat Min Machines Disabled 4 | . 2 2 Max in Single Turn 2 | . 1 2 Machines Sabotaged . | . . . Garrisons Compromised . | . . . Overloaded Fab Kills . | . . . Fab Network Shutdowns . | . . . Hacking | -11 -10 -10 --------- Run | Scr Mat Min Machines Accessed 1 | . 1 . Terminals 1 | . 1 . Fabricators . | . . . Repair Stations . | . . . Recycling Units . | . . . Scanalyzers . | . . . Garrison Access . | . . . Total Hacks 2 | . 2 . Successful . | . . . Failed 2 | . 2 . Catastrophic 1 | . 1 . Database Lockouts . | . . . Manual 2 | . 2 . Terminals 2 | . 2 . Fabricators . | . . . Repair Stations . | . . . Recycling Units . | . . . Scanalyzers . | . . . Garrison Access . | . . . Terminal Hacks . | . . . Fabricator Hacks . | . . . Repair Station Hacks . | . . . Recycling Unit Hacks . | . . . Scanalyzer . | . . . Garrison Access Hacks . | . . . Unauthorized Hacks . | . . . Terminals . | . . . Fabricators . | . . . Repair Stations . | . . . Recycling Units . | . . . Scanalyzers . | . . . Garrison Access . | . . . Data Cores Recovered . | . . . Used . | . . . Hacking Detections 1 | . 1 . Full Trace Events . | . . . Feedback Events . | . . . Feedback Blocked . | . . . Robot Schematics Acquired . | . . . Robots Built . | . . . Matter . | . . . Time . | . . . Total Robot Build Rating . | . . . Part Schematics Acquired . | . . . Parts Built . | . . . Matter . | . . . Time . | . . . Total Part Build Rating . | . . . Parts Repaired . | . . . Time . | . . . Parts Recycled . | . . . Recycled Matter . | . . . Retrieved Matter . | . . . Retrieved Components . | . . . Parts Scanalyzed . | . . . Part Schematics Acquired . | . . . Parts Damaged . | . . . Bothacking | -11 -10 -10 ------------ Run | Scr Mat Min Used RIF Installer . | . . . Robots Hacked . | . . . Non-combat . | . . . Combat . | . . . Robot Hacks Applied . | . . . Relay Couplers Released . | . . . Robots Rewired . | . . . Allies Hacked . | . . . Hacks Repelled . | . . . Allies | -11 -10 -10 -------- Run | Scr Mat Min Total Allies 1 | . . 1 Largest Group 1 | . . 1 Highest-Rated Group 31 | . . 31 Highest-Rated Ally 31 | . . 31 Total Orders . | . . . Ally Attacks 9 | . . 9 Total Damage 105 | . . 105 Kills 3 | . . 3 Allies Corrupted . | . . . Allies Melted . | . . . Intel | -11 -10 -10 ------- Run | Scr Mat Min Robot Analysis Total . | . . . Derelict Logs Recovered . | . . . Drone Launches . | . . . Drone Recoveries . | . . . Exploration | -11 -10 -10 ------------- Run | Scr Mat Min Turns Passed 948 | 65 347 536 Spaces Moved 598 | 44 209 345 Core 10 | 10 . . Treads . | . . . Legs 588 | 34 209 345 Wheels . | . . . Hover . | . . . Flight . | . . . Fastest Speed 50 | 50 120 120 Average Speed 118 | 104 120 120 Slowest Speed 120 | 120 120 120 Overloaded Moves . | . . . Propulsion Burnouts . | . . . Robots Hopped . | . . . Cave-ins Triggered . | . . . Exploration Rate (%) 39 | 4 41 74 Regions Visited 2 Branch Regions 1 Pre-discovered Areas . | . . . Known Exits Taken 1 | . 1 . Unknown Exits Taken 1 | 1 . . Scrap Searched 1 | . . 1 Spaces Dug 8 | . . 8 Terrain Destroyed 178 | . . 178 Melee . | . . . Projectile . | . . . AOE 178 | . . 178 Terrain Rammed . | . . . Walls Destroyed . | . . . Machines Disabled . | . . . Actions | -11 -10 -10 --------- Run | Scr Mat Min Total 741 | 63 251 427 Wait 39 | 8 7 24 Move 596 | 43 208 345 Hop . | . . . Pick Up 13 | 7 3 3 Fast Attach 3 | . 2 1 Attach 7 | 5 . 2 Detach . | . . . Swap 10 | . 1 9 Drop 7 | . 1 6 Fire 66 | . 29 37 Melee . | . . . Ram . | . . . Kick . | . . . Crush . | . . . Escape Stasis . | . . . Rewire . | . . . Trap . | . . . Miscellaneous . | . . . Route ------- -11/Scrapyard -10/Materials (discovered 2 exits: *Mat / *Min) -10/Mines (discovered 1 exit: *Mat) History --------- Turn | Location | Event 8 | -11/Scrapyard | Discovered new exit (range 15) 66 | -11/Scrapyard | Entered Materials 172 | -10/Materials | Discovered new exit (range 14) 244 | -10/Materials | Discovered new exit (range 8) 250 | -10/Materials | Identified exit to Materials 310 | -10/Materials | Build established: Mutant 412 | -10/Materials | Identified exit to Mines 413 | -10/Materials | Entered Mines 563 | -10/Mines | Received a Rocket Launcher from a helpful Derelict 583 | -10/Mines | Core integrity fell below 50% 701 | -10/Mines | Received a Mining Laser from a helpful Derelict 712 | -10/Mines | Build established: Scavenger-Mutant 757 | -10/Mines | Discovered exit to Materials (range 10) 855 | -10/Mines | Assembled infested the area 932 | -10/Mines | Destroyed 16 combat bots 942 | -10/Mines | Core integrity fell below 20% 949 | -10/Mines | Destroyed by D-53 Grenadier with Mini Grenade Launcher Last Messages --------------- 00911_ as-09923 destroyed. 00911_ as-07990 destroyed. 00912_ The unstable cave ceiling collapses. 00919_ Acquired 48 matter. 00922_ Acquired Carbon-fiber Leg. 00933_ The unstable cave ceiling collapses. 00933_ 1 Matter crushed. 00937_ The unstable cave ceiling collapses. 00939_ Lgt. Assault Rifle destroyed. 00941_ The unstable cave ceiling collapses. 00941_ Rocket Launcher destroyed. 00943_ U-05 Engineer builds a Wall. 00944_ The unstable cave ceiling collapses. 00945_ Lgt. Ion Engine destroyed. 00946_ The unstable cave ceiling collapses. 00947_ Sensor Array destroyed. 00947_ Aluminum Leg destroyed. 00948_ The unstable cave ceiling collapses. 00948_ U-05 Engineer builds a Wall. 00949_ The unstable cave ceiling collapses. Map ----- +----------------------------------------------------+ | | | | | | | | | | | | | | | | | | | | | ????????????????????????????????????????? | | ?????????????????????????????????#####??? | | ????????????????????????????????# ##?? | | ????????????????????####???????? #?? | | ???????????????????## #??????# #?? | | ??????????????????## ###### #?? | | ??????????????????# # ???? | | ??????????????????# ????? | | ??????????????????# < ??????? | | ???????????????????? #???????? | | ???????????????????????# ######????? | | ?????????????????????#### #????? | | ????????????????????## # # #????? | | ????????????????????# ###????? | | ????????????????????# ###??? | | ????????????????????# @ # #??? | | ????????????????????# #??? | | ????????????????????# ##?? | | ????????????????????# # ##? | | ????????????????????# #? | | ????????????????????## # #? | | ?????????????????????# ## ##? | | ?????????????????????# ### ##?? | | ?????????????????????## dd # #?# #??? | | ??????????????????????# # #|### #??? | | ??????????????????????### # !] #??? | | ??????????????????????%! ##!#####??? | | ?????????????????????### #??????? | | ???????????????????????# # ####??????? | | ??????####?????????????##### ????????? | | ????### ##????????????????# ###?????? | | ???## #???????########?# ##????? | | ##?# ????????# #?# #????? | | #?? ?????????# """ #?## #????? | | #??? #?????????# """ #??## #????? | | ##### ##???????## " #???## #????? | | ## #?????### = #????#### #????? | | ## ####### * #???????# #????? | | ## ## # %! #???????# #????? | | ?# ######## = #???????# #????? | +----------------------------------------------------+ Best States ------------- Heat Dissipation 25 Energy Generation 10 Energy Capacity 250 Matter Stores 300 Matter Capacity 300 Sight Range 16 Robot Scan Range 10 Terrain Scan Density 10 Resistance: KI 20 Resistance: TH 20 Resistance: EX 20 Resistance: EM 20 Resistance: I 20 Resistance: S 20 Resistance: P 20 Evasion (%) 50 Offensive Hacking 10 Item Schematics ----------------- None Robot Schematics ------------------ None Fabricated ------------ Nothing Alien Tech Used ----------------- None Achievements -------------- None Challenges ------------ None Game ------ Seed UltimateWardronePlating Manual? 0 Play Time 00:11:51 Cumulative 142.0 hours Start 2021.05.09 @ 23:09:58 End 2021.05.09 @ 23:22:24 Sessions 1 Manual Loads 0 Difficulty Adventurer Special Mode None Game No. 176 Rogue 105 Adventurer 28 Explorer 43 Win Type - Total 3 Types 2/0/1/0/0/0/0/0/0 Lore% 30 Gallery% 62 Achievement% 49 Wizard Run 0 Options --------- ASCII 0 Keyboard 0 Movement Mouse Keybinds 0 Fullscreen 1 Font 12/Smallcaps Map View 83x54 Tactical HUD 1 Map Filters NONE Filters NONE Steam 1 RUN: e0278833-8ba7-4c18-93e5-8a256a119b20